[Event "Titled Tuesday Blitz April 11 Late 2023"]
[White "Taboas Rodriguez, Daniel"]
[Black "Svane, Rasmus"]
[WhiteFideId "2208466"]
[BlackFideId "4657101"]
[WhiteElo "2365"]
[BlackElo "2597"]
[Result "0-1"]
[Round "01"]
[TimeControl "180+2"]
[Date "2023.04.11"]
[WhiteClock "0:00:10"]
[BlackClock "0:00:07"]

1. d4 {[%clk 0:02:59]}  d5 {[%clk 0:02:59]} 2. Nf3 {[%clk 0:02:59]}  e6 {[%clk 0:02:59]} 3. c4 {[%clk 0:03:00]}  a6 {[%clk 0:02:59]} 4. cxd5 {[%clk 0:02:56]}  exd5 {[%clk 0:03:00]} 5. Nc3 {[%clk 0:02:57]}  Nf6 {[%clk 0:02:59]} 6. Bg5 {[%clk 0:02:57]}  Be6 {[%clk 0:02:59]} 7. e3 {[%clk 0:02:57]}  Nbd7 {[%clk 0:03:00]} 8. Bd3 {[%clk 0:02:56]}  Bd6 {[%clk 0:03:00]} 9. O-O {[%clk 0:02:56]}  c6 {[%clk 0:03:00]} 10. Rb1 {[%clk 0:02:50]}  Qc7 {[%clk 0:02:54]} 11. b4 {[%clk 0:02:45]}  Bg4 {[%clk 0:02:52]} 12. h3 {[%clk 0:02:45]}  Bh5 {[%clk 0:02:52]} 13. a4 {[%clk 0:02:44]}  h6 {[%clk 0:02:51]} 14. Bxf6 {[%clk 0:02:38]}  Nxf6 {[%clk 0:02:43]} 15. Qc2 {[%clk 0:02:26]}  Bxf3 {[%clk 0:02:33]} 16. gxf3 {[%clk 0:02:27]}  O-O {[%clk 0:02:26]} 17. Kh1 {[%clk 0:02:23]}  Kh8 {[%clk 0:02:26]} 18. Rg1 {[%clk 0:02:23]}  Rg8 {[%clk 0:02:12]} 19. Rg2 {[%clk 0:02:22]}  Qe7 {[%clk 0:02:11]} 20. b5 {[%clk 0:02:21]}  cxb5 {[%clk 0:02:10]} 21. axb5 {[%clk 0:02:21]}  a5 {[%clk 0:02:10]} 22. Na4 {[%clk 0:02:14]}  Rac8 {[%clk 0:02:03]} 23. Qe2 {[%clk 0:02:14]}  Qd7 {[%clk 0:02:00]} 24. Rg4 {[%clk 0:01:59]}  Nxg4 {[%clk 0:01:58]} 25. fxg4 {[%clk 0:02:00]}  Bc7 {[%clk 0:01:39]} 26. Qf3 {[%clk 0:01:38]}  Qd6 {[%clk 0:01:32]} 27. Kg2 {[%clk 0:01:38]}  Rgf8 {[%clk 0:01:27]} 28. Nc5 {[%clk 0:01:34]}  b6 {[%clk 0:01:18]} 29. Na6 {[%clk 0:01:32]}  Bb8 {[%clk 0:01:11]} 30. Nxb8 {[%clk 0:01:18]}  Rxb8 {[%clk 0:01:09]} 31. Rc1 {[%clk 0:01:17]}  Qd7 {[%clk 0:00:49]} 32. Rc6 {[%clk 0:01:15]}  a4 {[%clk 0:00:49]} 33. Bf5 {[%clk 0:01:08]}  Qd8 {[%clk 0:00:45]} 34. Bc2 {[%clk 0:01:02]}  a3 {[%clk 0:00:25]} 35. Qf5 {[%clk 0:01:00]}  g6 {[%clk 0:00:24]} 36. Qe5+ {[%clk 0:00:49]}  f6 {[%clk 0:00:08]} 37. Qf4 {[%clk 0:00:48]}  g5 {[%clk 0:00:08]} 38. Qf5 {[%clk 0:00:44]}  Rb7 {[%clk 0:00:09]} 39. Bb1 {[%clk 0:00:40]}  Rg7 {[%clk 0:00:06]} 40. Qe6 {[%clk 0:00:21]}  Qd7 {[%clk 0:00:06]} 41. Rxb6 {[%clk 0:00:18]}  Qxe6 {[%clk 0:00:06]} 42. Rxe6 {[%clk 0:00:19]}  Ra7 {[%clk 0:00:05]} 43. Ba2 {[%clk 0:00:16]}  Rb8 {[%clk 0:00:06]} 44. Bxd5 {[%clk 0:00:12]}  Rxb5 {[%clk 0:00:06]} 45. Re8+ {[%clk 0:00:12]}  Kg7 {[%clk 0:00:06]} 46. Bc4 {[%clk 0:00:12]}  Rb4 {[%clk 0:00:06]} 47. Bd5 {[%clk 0:00:12]}  a2 {[%clk 0:00:06]} 48. Bxa2 {[%clk 0:00:13]}  Rxa2 {[%clk 0:00:07]} 49. Re7+ {[%clk 0:00:13]}  Kf8 {[%clk 0:00:07]} 50. Rh7 {[%clk 0:00:13]}  Rbb2 {[%clk 0:00:08]} 51. Rxh6 {[%clk 0:00:13]}  Rxf2+ {[%clk 0:00:08]} 52. Kg3 {[%clk 0:00:12]}  Kg7 {[%clk 0:00:09]} 53. Rh5 {[%clk 0:00:12]}  Rf1 {[%clk 0:00:07]} 54. h4 {[%clk 0:00:12]}  Re2 {[%clk 0:00:06]} 55. hxg5 {[%clk 0:00:11]}  Rxe3+ {[%clk 0:00:07]} 56. Kg2 {[%clk 0:00:12]}  Rf4 {[%clk 0:00:07]} 57. gxf6+ {[%clk 0:00:12]}  Kxf6 {[%clk 0:00:08]} 58. Rh6+ {[%clk 0:00:10]}  Kg5 {[%clk 0:00:08]} 59. Rd6 {[%clk 0:00:10]}  Kxg4 {[%clk 0:00:07]} 60. Rg6+ {[%clk 0:00:10]}  Kf5 {[%clk 0:00:07]} 61. Rd6 {[%clk 0:00:10]}  Rd3 {[%clk 0:00:07]} 62. d5 {[%clk 0:00:10]}  Rfd4 {[%clk 0:00:07]} 0-1


[Site "https://www.chess.com"]

[Event "Titled Tuesday Blitz April 11 Late 2023"]
[White "Bortnyk, Mykola"]
[Black "Araujo Sanchez, Josue"]
[WhiteFideId "14120836"]
[BlackFideId "6416896"]
[WhiteElo "2582"]
[BlackElo "2420"]
[Result "1-0"]
[Round "01"]
[TimeControl "180+2"]
[Date "2023.04.11"]
[WhiteClock "0:00:01"]
[BlackClock "0:00:00"]

1. Nf3 {[%clk 0:00:01]}  c5 {[%clk 0:00:01]} 2. g3 {[%clk 0:00:01]}  g6 {[%clk 0:00:01]} 3. Bg2 {[%clk 0:00:01]}  Bg7 {[%clk 0:00:01]} 4. O-O {[%clk 0:00:01]}  Nc6 {[%clk 0:00:01]} 5. c4 {[%clk 0:00:01]}  e5 {[%clk 0:00:01]} 6. Nc3 {[%clk 0:00:01]}  Nge7 {[%clk 0:00:01]} 7. d3 {[%clk 0:00:01]}  O-O {[%clk 0:00:01]} 8. Nd2 {[%clk 0:00:01]}  d6 {[%clk 0:00:01]} 9. Rb1 {[%clk 0:00:01]}  Be6 {[%clk 0:00:01]} 10. a3 {[%clk 0:00:01]}  d5 {[%clk 0:00:01]} 11. cxd5 {[%clk 0:00:01]}  Nxd5 {[%clk 0:00:01]} 12. Nde4 {[%clk 0:00:01]}  Nxc3 {[%clk 0:00:00]} 13. bxc3 {[%clk 0:00:01]}  Qe7 {[%clk 0:00:00]} 14. Be3 {[%clk 0:00:01]}  b6 {[%clk 0:00:00]} 15. Nxc5 {[%clk 0:00:01]}  bxc5 {[%clk 0:00:00]} 16. Bxc6 {[%clk 0:00:01]}  Rac8 {[%clk 0:00:00]} 17. Qa4 {[%clk 0:00:01]}  c4 {[%clk 0:00:00]} 18. dxc4 {[%clk 0:00:01]}  Rfd8 {[%clk 0:00:00]} 19. c5 {[%clk 0:00:01]}  Rc7 {[%clk 0:00:00]} 20. Bg2 {[%clk 0:00:01]}  h5 {[%clk 0:00:00]} 21. h4 {[%clk 0:00:01]}  Rdc8 {[%clk 0:00:00]} 22. c6 {[%clk 0:00:01]}  Bf8 {[%clk 0:00:00]} 23. Rb7 {[%clk 0:00:01]}  Qxa3 {[%clk 0:00:00]} 24. Qxa3 {[%clk 0:00:01]}  Bxa3 {[%clk 0:00:00]} 25. Ra1 {[%clk 0:00:01]}  Bd6 {[%clk 0:00:00]} 26. Raxa7 {[%clk 0:00:01]}  Kf8 {[%clk 0:00:00]} 27. Bb6 {[%clk 0:00:01]}  Rxc6 {[%clk 0:00:00]} 28. Bxc6 {[%clk 0:00:01]}  Rxc6 {[%clk 0:00:00]} 29. Ba5 {[%clk 0:00:01]}  Rc4 {[%clk 0:00:00]} 30. Bc7 {[%clk 0:00:01]}  Bc5 {[%clk 0:00:00]} 31. Ra8+ {[%clk 0:00:01]}  Ke7 {[%clk 0:00:00]} 32. Bxe5+ {[%clk 0:00:01]}  Bd7 {[%clk 0:00:00]} 33. Bd4 {[%clk 0:00:01]} 1-0


[Site "https://www.chess.com"]

[Event "Titled Tuesday Blitz April 11 Late 2023"]
[White "Goltseva, Ekaterina"]
[Black "Anton Guijarro, David"]
[WhiteFideId "24173770"]
[BlackFideId "2285525"]
[WhiteElo "2200"]
[BlackElo "2618"]
[Result "0-1"]
[Round "01"]
[TimeControl "180+2"]
[Date "2023.04.11"]
[WhiteClock "0:00:00"]
[BlackClock "0:00:00"]

1. d4 {[%clk 0:00:01]}  Nf6 {[%clk 0:00:01]} 2. c4 {[%clk 0:00:01]}  e6 {[%clk 0:00:01]} 3. g3 {[%clk 0:00:01]}  Bb4+ {[%clk 0:00:01]} 4. Nd2 {[%clk 0:00:01]}  c5 {[%clk 0:00:01]} 5. a3 {[%clk 0:00:01]}  Bxd2+ {[%clk 0:00:01]} 6. Qxd2 {[%clk 0:00:01]}  Nc6 {[%clk 0:00:01]} 7. Nf3 {[%clk 0:00:01]}  Na5 {[%clk 0:00:01]} 8. Qc2 {[%clk 0:00:01]}  b5 {[%clk 0:00:01]} 9. cxb5 {[%clk 0:00:01]}  c4 {[%clk 0:00:01]} 10. Bg2 {[%clk 0:00:01]}  Bb7 {[%clk 0:00:01]} 11. Bg5 {[%clk 0:00:01]}  Nb3 {[%clk 0:00:01]} 12. Rd1 {[%clk 0:00:01]}  Qa5+ {[%clk 0:00:01]} 13. Qc3 {[%clk 0:00:00]}  Qxc3+ {[%clk 0:00:01]} 14. bxc3 {[%clk 0:00:00]}  Ne4 {[%clk 0:00:01]} 15. Nd2 {[%clk 0:00:00]}  Nbxd2 {[%clk 0:00:00]} 16. Bxd2 {[%clk 0:00:00]}  a6 {[%clk 0:00:00]} 17. Bxe4 {[%clk 0:00:00]}  Bxe4 {[%clk 0:00:00]} 18. f3 {[%clk 0:00:00]}  Bc2 {[%clk 0:00:00]} 19. Rc1 {[%clk 0:00:00]}  Bb3 {[%clk 0:00:00]} 20. b6 {[%clk 0:00:00]}  Rb8 {[%clk 0:00:00]} 21. e4 {[%clk 0:00:00]}  Rxb6 {[%clk 0:00:00]} 22. Kf2 {[%clk 0:00:00]}  d6 {[%clk 0:00:00]} 23. Rb1 {[%clk 0:00:00]}  Kd7 {[%clk 0:00:00]} 24. Rb2 {[%clk 0:00:00]}  Rb5 {[%clk 0:00:00]} 25. Ra1 {[%clk 0:00:00]}  f5 {[%clk 0:00:00]} 26. Ke3 {[%clk 0:00:00]}  Rf8 {[%clk 0:00:00]} 27. Rbb1 {[%clk 0:00:00]}  g5 {[%clk 0:00:00]} 28. Rf1 {[%clk 0:00:00]}  Bc2 {[%clk 0:00:00]} 29. Ra2 {[%clk 0:00:00]}  Bd3 {[%clk 0:00:00]} 30. Re1 {[%clk 0:00:00]}  fxe4 {[%clk 0:00:00]} 31. fxe4 {[%clk 0:00:00]}  g4 {[%clk 0:00:00]} 0-1


[Site "https://www.chess.com"]

[Event "Titled Tuesday Blitz April 11 Late 2023"]
[White "Forgacs, Attila Jr."]
[Black "Xiong, Jeffery"]
[WhiteFideId "773654"]
[BlackFideId "2047640"]
[WhiteElo "2168"]
[BlackElo "2726"]
[Result "0-1"]
[Round "01"]
[TimeControl "180+2"]
[Date "2023.04.11"]
[WhiteClock "0:00:00"]
[BlackClock "0:00:01"]

1. e4 {[%clk 0:00:01]}  e6 {[%clk 0:00:01]} 2. d4 {[%clk 0:00:01]}  d5 {[%clk 0:00:01]} 3. Nc3 {[%clk 0:00:01]}  Nf6 {[%clk 0:00:01]} 4. e5 {[%clk 0:00:01]}  Nfd7 {[%clk 0:00:01]} 5. f4 {[%clk 0:00:01]}  c5 {[%clk 0:00:01]} 6. Nf3 {[%clk 0:00:01]}  Nc6 {[%clk 0:00:01]} 7. Be3 {[%clk 0:00:01]}  cxd4 {[%clk 0:00:01]} 8. Nxd4 {[%clk 0:00:01]}  Qb6 {[%clk 0:00:01]} 9. Qd2 {[%clk 0:00:01]}  Qxb2 {[%clk 0:00:01]} 10. Rb1 {[%clk 0:00:01]}  Qa3 {[%clk 0:00:01]} 11. Rb3 {[%clk 0:00:01]}  Qa5 {[%clk 0:00:01]} 12. Bb5 {[%clk 0:00:01]}  Ndb8 {[%clk 0:00:01]} 13. O-O {[%clk 0:00:01]}  Be7 {[%clk 0:00:01]} 14. f5 {[%clk 0:00:01]}  exf5 {[%clk 0:00:01]} 15. Nxd5 {[%clk 0:00:00]}  Qxd2 {[%clk 0:00:01]} 16. Bxd2 {[%clk 0:00:00]}  Bd8 {[%clk 0:00:01]} 17. Nxf5 {[%clk 0:00:00]}  Bxf5 {[%clk 0:00:01]} 18. Rxf5 {[%clk 0:00:00]}  Nd7 {[%clk 0:00:01]} 19. Bb4 {[%clk 0:00:00]}  Nd4 {[%clk 0:00:01]} 20. Bxd7+ {[%clk 0:00:00]}  Kxd7 {[%clk 0:00:01]} 21. Rxf7+ {[%clk 0:00:00]}  Ke6 {[%clk 0:00:01]} 22. Rxb7 {[%clk 0:00:00]}  Kxd5 {[%clk 0:00:01]} 23. Rd3 {[%clk 0:00:00]}  Kc6 {[%clk 0:00:01]} 24. Rxg7 {[%clk 0:00:00]}  Bb6 {[%clk 0:00:01]} 25. Kh1 {[%clk 0:00:00]}  Rae8 {[%clk 0:00:01]} 26. c3 {[%clk 0:00:00]}  Nf5 {[%clk 0:00:01]} 27. Rf7 {[%clk 0:00:00]}  Rxe5 {[%clk 0:00:01]} 28. g4 {[%clk 0:00:00]}  Nh4 {[%clk 0:00:01]} 29. c4 {[%clk 0:00:00]}  Re6 {[%clk 0:00:01]} 30. Rfd7 {[%clk 0:00:00]}  Bc5 {[%clk 0:00:01]} 31. Bxc5 {[%clk 0:00:00]}  Kxc5 {[%clk 0:00:01]} 32. Rc7+ {[%clk 0:00:00]}  Kb6 {[%clk 0:00:01]} 33. Rcd7 {[%clk 0:00:00]}  Re1# {[%clk 0:00:01]} 0-1


[Site "https://www.chess.com"]

[Event "Titled Tuesday Blitz April 11 Late 2023"]
[White "Manea, Alexandru"]
[Black "Steinberg, Nitzan"]
[WhiteFideId "1207660"]
[BlackFideId "2801795"]
[WhiteElo "2226"]
[BlackElo "2486"]
[Result "0-1"]
[Round "01"]
[TimeControl "180+2"]
[Date "2023.04.11"]
[WhiteClock "0:00:00"]
[BlackClock "0:00:01"]

1. g3 {[%clk 0:00:01]}  d5 {[%clk 0:00:01]} 2. Bg2 {[%clk 0:00:01]}  Nf6 {[%clk 0:00:01]} 3. Nf3 {[%clk 0:00:01]}  g6 {[%clk 0:00:01]} 4. d4 {[%clk 0:00:01]}  Bg7 {[%clk 0:00:01]} 5. O-O {[%clk 0:00:01]}  Nbd7 {[%clk 0:00:01]} 6. b3 {[%clk 0:00:01]}  a5 {[%clk 0:00:01]} 7. Ba3 {[%clk 0:00:01]}  a4 {[%clk 0:00:01]} 8. c4 {[%clk 0:00:01]}  O-O {[%clk 0:00:01]} 9. Nc3 {[%clk 0:00:01]}  Nb6 {[%clk 0:00:01]} 10. c5 {[%clk 0:00:01]}  Nbd7 {[%clk 0:00:01]} 11. b4 {[%clk 0:00:01]}  c6 {[%clk 0:00:01]} 12. b5 {[%clk 0:00:01]}  Ne4 {[%clk 0:00:01]} 13. bxc6 {[%clk 0:00:01]}  Nxc3 {[%clk 0:00:01]} 14. Qc2 {[%clk 0:00:01]}  Nxe2+ {[%clk 0:00:01]} 15. Qxe2 {[%clk 0:00:01]}  bxc6 {[%clk 0:00:01]} 16. Rfe1 {[%clk 0:00:01]}  e6 {[%clk 0:00:01]} 17. Rab1 {[%clk 0:00:01]}  Ba6 {[%clk 0:00:01]} 18. Qd2 {[%clk 0:00:01]}  Bb5 {[%clk 0:00:01]} 19. h4 {[%clk 0:00:01]}  h6 {[%clk 0:00:01]} 20. Ne5 {[%clk 0:00:01]}  Nxe5 {[%clk 0:00:01]} 21. dxe5 {[%clk 0:00:01]}  d4 {[%clk 0:00:01]} 22. f4 {[%clk 0:00:01]}  d3 {[%clk 0:00:01]} 23. Kh2 {[%clk 0:00:01]}  Qd7 {[%clk 0:00:01]} 24. Bb4 {[%clk 0:00:01]}  Rfd8 {[%clk 0:00:01]} 25. a3 {[%clk 0:00:01]}  Bf8 {[%clk 0:00:01]} 26. Rbc1 {[%clk 0:00:01]}  Qa7 {[%clk 0:00:01]} 27. Be4 {[%clk 0:00:01]}  Rd4 {[%clk 0:00:01]} 28. Rc3 {[%clk 0:00:01]}  Rad8 {[%clk 0:00:01]} 29. Re3 {[%clk 0:00:01]}  Qd7 {[%clk 0:00:01]} 30. Kh3 {[%clk 0:00:01]}  Be7 {[%clk 0:00:01]} 31. Bg2 {[%clk 0:00:01]}  g5 {[%clk 0:00:01]} 32. Rf3 {[%clk 0:00:01]}  Re4 {[%clk 0:00:01]} 33. Rf2 {[%clk 0:00:01]}  Re2 {[%clk 0:00:01]} 34. Rxe2 {[%clk 0:00:00]}  dxe2 {[%clk 0:00:01]} 35. Qe3 {[%clk 0:00:00]}  g4+ {[%clk 0:00:01]} 36. Kh2 {[%clk 0:00:00]}  Qd1 {[%clk 0:00:01]} 37. Rc1 {[%clk 0:00:00]}  Qd3 {[%clk 0:00:01]} 38. Qf2 {[%clk 0:00:00]}  Qb3 {[%clk 0:00:01]} 39. Re1 {[%clk 0:00:00]}  Qc2 {[%clk 0:00:01]} 40. h5 {[%clk 0:00:00]}  Rd1 {[%clk 0:00:01]} 41. Qe3 {[%clk 0:00:00]}  Rxe1 {[%clk 0:00:01]} 42. Bxe1 {[%clk 0:00:00]}  Bxc5 {[%clk 0:00:01]} 0-1


[Site "https://www.chess.com"]

[Event "Titled Tuesday Blitz April 11 Late 2023"]
[White "Zhigalko, Sergei"]
[Black "Pasti, Aron"]
[WhiteFideId "13502956"]
[BlackFideId "785857"]
[WhiteElo "2626"]
[BlackElo "2173"]
[Result "1-0"]
[Round "01"]
[TimeControl "180+2"]
[Date "2023.04.11"]
[WhiteClock "0:00:01"]
[BlackClock "0:00:00"]

1. e4 {[%clk 0:00:01]}  c5 {[%clk 0:00:00]} 2. Nf3 {[%clk 0:00:01]}  e6 {[%clk 0:00:00]} 3. c3 {[%clk 0:00:01]}  d5 {[%clk 0:00:00]} 4. e5 {[%clk 0:00:01]}  d4 {[%clk 0:00:00]} 5. Bd3 {[%clk 0:00:01]}  Ne7 {[%clk 0:00:00]} 6. O-O {[%clk 0:00:01]}  g6 {[%clk 0:00:00]} 7. Na3 {[%clk 0:00:01]}  Bg7 {[%clk 0:00:00]} 8. Nc4 {[%clk 0:00:01]}  O-O {[%clk 0:00:00]} 9. Be4 {[%clk 0:00:01]}  Nbc6 {[%clk 0:00:00]} 10. a4 {[%clk 0:00:01]}  d3 {[%clk 0:00:00]} 11. Re1 {[%clk 0:00:01]}  Qc7 {[%clk 0:00:00]} 12. Bxd3 {[%clk 0:00:01]}  b6 {[%clk 0:00:00]} 13. Be4 {[%clk 0:00:01]}  Ba6 {[%clk 0:00:00]} 14. Nd6 {[%clk 0:00:01]}  Rad8 {[%clk 0:00:00]} 15. d4 {[%clk 0:00:01]}  cxd4 {[%clk 0:00:00]} 16. cxd4 {[%clk 0:00:01]}  Nc8 {[%clk 0:00:00]} 17. Bf4 {[%clk 0:00:01]}  Nxd6 {[%clk 0:00:00]} 18. exd6 {[%clk 0:00:01]}  Qd7 {[%clk 0:00:00]} 19. Rc1 {[%clk 0:00:01]}  Nb4 {[%clk 0:00:00]} 20. Rc7 {[%clk 0:00:01]} 1-0


[Site "https://www.chess.com"]

[Event "Titled Tuesday Blitz April 11 Late 2023"]
[White "Sai Han Thiha"]
[Black "Terry, Renato"]
[WhiteFideId "13012290"]
[BlackFideId "3803457"]
[WhiteElo "1954"]
[BlackElo "2575"]
[Result "0-1"]
[Round "01"]
[TimeControl "180+2"]
[Date "2023.04.11"]
[WhiteClock "0:00:00"]
[BlackClock "0:00:00"]

1. d4 {[%clk 0:00:01]}  d5 {[%clk 0:00:01]} 2. c4 {[%clk 0:00:01]}  dxc4 {[%clk 0:00:01]} 3. e3 {[%clk 0:00:01]}  Nf6 {[%clk 0:00:01]} 4. Bxc4 {[%clk 0:00:01]}  e6 {[%clk 0:00:01]} 5. Nf3 {[%clk 0:00:01]}  a6 {[%clk 0:00:01]} 6. O-O {[%clk 0:00:01]}  c5 {[%clk 0:00:01]} 7. Bd3 {[%clk 0:00:01]}  Nc6 {[%clk 0:00:01]} 8. Nc3 {[%clk 0:00:01]}  Be7 {[%clk 0:00:01]} 9. dxc5 {[%clk 0:00:01]}  Bxc5 {[%clk 0:00:01]} 10. e4 {[%clk 0:00:01]}  Qc7 {[%clk 0:00:01]} 11. Qe2 {[%clk 0:00:01]}  Ng4 {[%clk 0:00:01]} 12. g3 {[%clk 0:00:01]}  Nge5 {[%clk 0:00:01]} 13. Nxe5 {[%clk 0:00:01]}  Nxe5 {[%clk 0:00:01]} 14. Bc2 {[%clk 0:00:01]}  O-O {[%clk 0:00:01]} 15. Be3 {[%clk 0:00:01]}  Bxe3 {[%clk 0:00:01]} 16. Qxe3 {[%clk 0:00:01]}  Nc4 {[%clk 0:00:01]} 17. Qc1 {[%clk 0:00:01]}  b5 {[%clk 0:00:01]} 18. Bb3 {[%clk 0:00:01]}  Bb7 {[%clk 0:00:01]} 19. a3 {[%clk 0:00:01]}  Ne5 {[%clk 0:00:01]} 20. Qe3 {[%clk 0:00:01]}  Rfd8 {[%clk 0:00:01]} 21. Rfd1 {[%clk 0:00:01]}  h5 {[%clk 0:00:01]} 22. h3 {[%clk 0:00:00]}  h4 {[%clk 0:00:01]} 23. g4 {[%clk 0:00:00]}  Ng6 {[%clk 0:00:01]} 24. Ne2 {[%clk 0:00:00]}  Qe5 {[%clk 0:00:01]} 25. f3 {[%clk 0:00:00]}  Qxb2 {[%clk 0:00:01]} 26. a4 {[%clk 0:00:00]}  Ne5 {[%clk 0:00:00]} 27. axb5 {[%clk 0:00:00]}  axb5 {[%clk 0:00:00]} 28. Rxa8 {[%clk 0:00:00]}  Rxa8 {[%clk 0:00:00]} 29. Rd2 {[%clk 0:00:00]}  Qxd2 {[%clk 0:00:00]} 30. Qxd2 {[%clk 0:00:00]}  Nxf3+ {[%clk 0:00:00]} 31. Kf2 {[%clk 0:00:00]}  Nxd2 {[%clk 0:00:00]} 0-1


[Site "https://www.chess.com"]

[Event "Titled Tuesday Blitz April 11 Late 2023"]
[White "Dauner, Benedikt"]
[Black "Grigoriants, Sergey"]
[WhiteFideId "16225899"]
[BlackFideId "4130804"]
[WhiteElo "2205"]
[BlackElo "2502"]
[Result "0-1"]
[Round "01"]
[TimeControl "180+2"]
[Date "2023.04.11"]
[WhiteClock "0:00:00"]
[BlackClock "0:00:00"]

1. e4 {[%clk 0:00:01]}  c5 {[%clk 0:00:01]} 2. Nc3 {[%clk 0:00:01]}  e6 {[%clk 0:00:01]} 3. Nf3 {[%clk 0:00:01]}  Nc6 {[%clk 0:00:01]} 4. d4 {[%clk 0:00:01]}  cxd4 {[%clk 0:00:01]} 5. Nxd4 {[%clk 0:00:01]}  Nf6 {[%clk 0:00:01]} 6. Nxc6 {[%clk 0:00:01]}  bxc6 {[%clk 0:00:01]} 7. e5 {[%clk 0:00:01]}  Nd5 {[%clk 0:00:01]} 8. Ne4 {[%clk 0:00:01]}  Qc7 {[%clk 0:00:01]} 9. f4 {[%clk 0:00:01]}  Bb7 {[%clk 0:00:01]} 10. a3 {[%clk 0:00:01]}  c5 {[%clk 0:00:01]} 11. Nd6+ {[%clk 0:00:01]}  Bxd6 {[%clk 0:00:01]} 12. exd6 {[%clk 0:00:01]}  Qb6 {[%clk 0:00:01]} 13. c4 {[%clk 0:00:01]}  Nf6 {[%clk 0:00:01]} 14. Be2 {[%clk 0:00:01]}  Ne4 {[%clk 0:00:01]} 15. Bf3 {[%clk 0:00:01]}  Nxd6 {[%clk 0:00:01]} 16. Bxb7 {[%clk 0:00:00]}  Nxb7 {[%clk 0:00:01]} 17. O-O {[%clk 0:00:00]}  Nd6 {[%clk 0:00:01]} 18. Qc2 {[%clk 0:00:00]}  O-O {[%clk 0:00:01]} 19. Be3 {[%clk 0:00:00]}  Qc6 {[%clk 0:00:01]} 20. Rac1 {[%clk 0:00:00]}  a5 {[%clk 0:00:01]} 21. Qf2 {[%clk 0:00:00]}  Rac8 {[%clk 0:00:01]} 22. Rfd1 {[%clk 0:00:00]}  Nf5 {[%clk 0:00:01]} 23. Bd2 {[%clk 0:00:00]}  a4 {[%clk 0:00:01]} 24. Bc3 {[%clk 0:00:00]}  f6 {[%clk 0:00:01]} 25. g4 {[%clk 0:00:00]}  Ne7 {[%clk 0:00:01]} 26. f5 {[%clk 0:00:00]}  d5 {[%clk 0:00:00]} 27. cxd5 {[%clk 0:00:00]}  Nxd5 {[%clk 0:00:00]} 28. Qg2 {[%clk 0:00:00]}  Qb6 {[%clk 0:00:00]} 29. fxe6 {[%clk 0:00:00]}  Ne3 {[%clk 0:00:00]} 30. Qe2 {[%clk 0:00:00]}  Nxd1 {[%clk 0:00:00]} 31. Rxd1 {[%clk 0:00:00]}  Rfe8 {[%clk 0:00:00]} 32. e7 {[%clk 0:00:00]}  Rc7 {[%clk 0:00:00]} 33. Rd8 {[%clk 0:00:00]}  Kf7 {[%clk 0:00:00]} 34. Qc4+ {[%clk 0:00:00]}  Kxe7 {[%clk 0:00:00]} 35. Rxe8+ {[%clk 0:00:00]}  Kxe8 {[%clk 0:00:00]} 36. Qg8+ {[%clk 0:00:00]}  Kd7 {[%clk 0:00:00]} 37. Qxg7+ {[%clk 0:00:00]}  Kc8 {[%clk 0:00:00]} 38. Qf8+ {[%clk 0:00:00]}  Kb7 {[%clk 0:00:00]} 39. Bxf6 {[%clk 0:00:00]}  Qe6 {[%clk 0:00:00]} 40. Bc3 {[%clk 0:00:00]}  Qxg4+ {[%clk 0:00:00]} 41. Kh1 {[%clk 0:00:00]}  Qe4+ {[%clk 0:00:00]} 42. Kg1 {[%clk 0:00:00]}  Qg6+ {[%clk 0:00:00]} 43. Kh1 {[%clk 0:00:00]}  Rf7 {[%clk 0:00:00]} 44. Qe8 {[%clk 0:00:00]}  Rf1# {[%clk 0:00:00]} 0-1


[Site "https://www.chess.com"]

[Event "Titled Tuesday Blitz April 11 Late 2023"]
[White "Kravtsiv, Martyn"]
[Black "Sreyas Payyappat"]
[WhiteFideId "14113147"]
[BlackFideId "46674969"]
[WhiteElo "2695"]
[BlackElo "2083"]
[Result "0-1"]
[Round "01"]
[TimeControl "180+2"]
[Date "2023.04.11"]
[WhiteClock "0:00:00"]
[BlackClock "0:00:01"]

1. e4 {[%clk 0:00:01]}  c6 {[%clk 0:00:01]} 2. Nf3 {[%clk 0:00:01]}  d5 {[%clk 0:00:01]} 3. d3 {[%clk 0:00:01]}  dxe4 {[%clk 0:00:01]} 4. dxe4 {[%clk 0:00:01]}  Qxd1+ {[%clk 0:00:01]} 5. Kxd1 {[%clk 0:00:01]}  Bg4 {[%clk 0:00:01]} 6. Be2 {[%clk 0:00:01]}  Nd7 {[%clk 0:00:01]} 7. Nbd2 {[%clk 0:00:01]}  e5 {[%clk 0:00:01]} 8. Ne1 {[%clk 0:00:01]}  Bxe2+ {[%clk 0:00:01]} 9. Kxe2 {[%clk 0:00:01]}  O-O-O {[%clk 0:00:01]} 10. Nd3 {[%clk 0:00:01]}  Bd6 {[%clk 0:00:01]} 11. Nc4 {[%clk 0:00:01]}  Bc7 {[%clk 0:00:01]} 12. a4 {[%clk 0:00:01]}  Ne7 {[%clk 0:00:01]} 13. f3 {[%clk 0:00:01]}  Rde8 {[%clk 0:00:01]} 14. Rd1 {[%clk 0:00:01]}  f5 {[%clk 0:00:01]} 15. Bg5 {[%clk 0:00:01]}  Rhf8 {[%clk 0:00:01]} 16. a5 {[%clk 0:00:01]}  Ng6 {[%clk 0:00:01]} 17. Be3 {[%clk 0:00:01]}  fxe4 {[%clk 0:00:01]} 18. fxe4 {[%clk 0:00:01]}  Nf4+ {[%clk 0:00:01]} 19. Bxf4 {[%clk 0:00:01]}  exf4 {[%clk 0:00:01]} 20. Kf3 {[%clk 0:00:01]}  g5 {[%clk 0:00:01]} 21. Nf2 {[%clk 0:00:01]}  h5 {[%clk 0:00:01]} 22. h3 {[%clk 0:00:01]}  Nf6 {[%clk 0:00:01]} 23. a6 {[%clk 0:00:01]}  g4+ {[%clk 0:00:01]} 24. hxg4 {[%clk 0:00:01]}  hxg4+ {[%clk 0:00:01]} 25. Nxg4 {[%clk 0:00:01]}  Nxg4 {[%clk 0:00:01]} 26. axb7+ {[%clk 0:00:00]}  Kxb7 {[%clk 0:00:01]} 27. Kxg4 {[%clk 0:00:00]}  Rxe4 {[%clk 0:00:01]} 28. Nd2 {[%clk 0:00:00]}  Re3 {[%clk 0:00:01]} 29. Nf3 {[%clk 0:00:00]}  Rg8+ {[%clk 0:00:01]} 30. Kh3 {[%clk 0:00:00]}  Re2 {[%clk 0:00:01]} 31. Rd2 {[%clk 0:00:00]}  Rg3+ {[%clk 0:00:01]} 32. Kh2 {[%clk 0:00:00]}  Rgxg2+ {[%clk 0:00:01]} 33. Kh1 {[%clk 0:00:00]}  Rxd2 {[%clk 0:00:01]} 0-1


[Site "https://www.chess.com"]